[Event "Titled Tuesday Blitz May 03 Late 2022"]
[White "Prohorov, Olexandr"]
[Black "Barria Zuniga, Daniel"]
[WhiteFideId "14105578"]
[BlackFideId "3400816"]
[WhiteElo "1993"]
[BlackElo "2414"]
[Result "1/2-1/2"]
[Round "05"]
[TimeControl "180+1"]
[Date "2022.05.03"]
[WhiteClock "0:01:05"]
[BlackClock "0:01:03"]

1. Nf3 {[%clk 0:03:00]}  g6 {[%clk 0:02:55]} 2. g3 {[%clk 0:02:58]}  Bg7 {[%clk 0:02:55]} 3. Bg2 {[%clk 0:02:58]}  c5 {[%clk 0:02:55]} 4. O-O {[%clk 0:02:59]}  Nc6 {[%clk 0:02:56]} 5. c4 {[%clk 0:02:58]}  a6 {[%clk 0:02:53]} 6. Nc3 {[%clk 0:02:58]}  Rb8 {[%clk 0:02:53]} 7. a4 {[%clk 0:02:43]}  d6 {[%clk 0:02:42]} 8. b3 {[%clk 0:02:43]}  Bxc3 {[%clk 0:02:33]} 9. dxc3 {[%clk 0:02:42]}  b6 {[%clk 0:02:33]} 10. e4 {[%clk 0:02:37]}  Bb7 {[%clk 0:02:31]} 11. Re1 {[%clk 0:02:35]}  e5 {[%clk 0:02:29]} 12. Nd2 {[%clk 0:02:25]}  h5 {[%clk 0:02:20]} 13. h4 {[%clk 0:02:14]}  f6 {[%clk 0:01:56]} 14. Nf1 {[%clk 0:02:13]}  Kf7 {[%clk 0:01:56]} 15. Ne3 {[%clk 0:02:08]}  Kg7 {[%clk 0:01:56]} 16. Ra2 {[%clk 0:02:06]}  Nh6 {[%clk 0:01:50]} 17. Rd2 {[%clk 0:02:03]}  Nf7 {[%clk 0:01:50]} 18. Nd5 {[%clk 0:02:00]}  Ne7 {[%clk 0:01:46]} 19. Qe2 {[%clk 0:01:52]}  Nxd5 {[%clk 0:01:40]} 20. cxd5 {[%clk 0:01:49]}  Bc8 {[%clk 0:01:38]} 21. Rb2 {[%clk 0:01:42]}  Qc7 {[%clk 0:01:32]} 22. Be3 {[%clk 0:01:35]}  b5 {[%clk 0:01:27]} 23. axb5 {[%clk 0:01:32]}  axb5 {[%clk 0:01:26]} 24. b4 {[%clk 0:01:33]}  c4 {[%clk 0:01:17]} 25. Ra2 {[%clk 0:01:29]}  Bg4 {[%clk 0:01:16]} 26. f3 {[%clk 0:01:27]}  Bd7 {[%clk 0:01:15]} 27. Rea1 {[%clk 0:01:26]}  Rb7 {[%clk 0:01:10]} 28. Qf2 {[%clk 0:01:22]}  Rhb8 {[%clk 0:01:08]} 29. Kh2 {[%clk 0:01:18]}  Qc8 {[%clk 0:01:07]} 30. Ra6 {[%clk 0:01:15]}  Qd8 {[%clk 0:01:05]} 31. Qd2 {[%clk 0:01:05]}  Qe7 {[%clk 0:01:03]} 1/2-1/2


[Site "https://www.chess.com"]

[Event "Titled Tuesday Blitz May 03 Late 2022"]
[White "Przybylski, Wojciech"]
[Black "Djokic, Mihailo"]
[WhiteFideId "1117599"]
[BlackFideId "976440"]
[WhiteElo "2133"]
[BlackElo "2202"]
[Result "0-1"]
[Round "05"]
[TimeControl "180+1"]
[Date "2022.05.03"]
[WhiteClock "0:00:06"]
[BlackClock "0:00:01"]

1. d4 {[%clk 0:02:57]}  Nf6 {[%clk 0:02:59]} 2. Nf3 {[%clk 0:02:56]}  g6 {[%clk 0:03:00]} 3. Bf4 {[%clk 0:02:55]}  c5 {[%clk 0:03:00]} 4. e3 {[%clk 0:02:55]}  Bg7 {[%clk 0:02:59]} 5. c3 {[%clk 0:02:56]}  Qb6 {[%clk 0:02:59]} 6. Qb3 {[%clk 0:02:55]}  Nc6 {[%clk 0:02:57]} 7. Nbd2 {[%clk 0:02:53]}  cxd4 {[%clk 0:02:55]} 8. exd4 {[%clk 0:02:52]}  O-O {[%clk 0:02:52]} 9. Bd3 {[%clk 0:02:50]}  d5 {[%clk 0:02:42]} 10. O-O {[%clk 0:02:49]}  Qd8 {[%clk 0:02:34]} 11. Qc2 {[%clk 0:02:47]}  a6 {[%clk 0:02:30]} 12. Rfe1 {[%clk 0:02:44]}  Bd7 {[%clk 0:02:29]} 13. Rad1 {[%clk 0:02:38]}  Rc8 {[%clk 0:02:29]} 14. Qb1 {[%clk 0:02:38]}  Re8 {[%clk 0:02:27]} 15. h3 {[%clk 0:02:37]}  b5 {[%clk 0:02:21]} 16. Ne5 {[%clk 0:02:33]}  Be6 {[%clk 0:02:16]} 17. Nb3 {[%clk 0:02:27]}  Nxe5 {[%clk 0:02:02]} 18. Bxe5 {[%clk 0:02:25]}  Nd7 {[%clk 0:02:02]} 19. Bxg7 {[%clk 0:02:16]}  Kxg7 {[%clk 0:02:02]} 20. Re3 {[%clk 0:02:12]}  Qb6 {[%clk 0:01:59]} 21. a3 {[%clk 0:02:07]}  Qd6 {[%clk 0:01:39]} 22. Rde1 {[%clk 0:02:06]}  Rc6 {[%clk 0:01:28]} 23. h4 {[%clk 0:02:04]}  Nf6 {[%clk 0:01:25]} 24. Nc5 {[%clk 0:01:52]}  Bc8 {[%clk 0:01:25]} 25. b4 {[%clk 0:01:43]}  Ng4 {[%clk 0:01:24]} 26. Rg3 {[%clk 0:01:38]}  e5 {[%clk 0:01:23]} 27. Be2 {[%clk 0:01:24]}  Nf6 {[%clk 0:01:16]} 28. dxe5 {[%clk 0:01:14]}  Rxe5 {[%clk 0:01:15]} 29. Bd3 {[%clk 0:01:14]}  Rxe1+ {[%clk 0:01:06]} 30. Qxe1 {[%clk 0:01:13]}  d4 {[%clk 0:00:58]} 31. c4 {[%clk 0:00:56]}  Nh5 {[%clk 0:00:43]} 32. Rg5 {[%clk 0:00:47]}  bxc4 {[%clk 0:00:40]} 33. Bxc4 {[%clk 0:00:45]}  Qf6 {[%clk 0:00:28]} 34. Rd5 {[%clk 0:00:17]}  Be6 {[%clk 0:00:26]} 35. Nxe6+ {[%clk 0:00:14]}  Rxe6 {[%clk 0:00:24]} 36. Qd2 {[%clk 0:00:11]}  Rd6 {[%clk 0:00:17]} 37. Rxd6 {[%clk 0:00:09]}  Qxd6 {[%clk 0:00:18]} 38. g3 {[%clk 0:00:08]}  Nf6 {[%clk 0:00:17]} 39. Qd3 {[%clk 0:00:08]}  Nd7 {[%clk 0:00:16]} 40. Bxa6 {[%clk 0:00:07]}  Ne5 {[%clk 0:00:17]} 41. Qe4 {[%clk 0:00:04]}  d3 {[%clk 0:00:15]} 42. a4 {[%clk 0:00:02]}  d2 {[%clk 0:00:15]} 43. Be2 {[%clk 0:00:02]}  d1=Q+ {[%clk 0:00:12]} 44. Bxd1 {[%clk 0:00:02]}  Qxd1+ {[%clk 0:00:12]} 45. Kg2 {[%clk 0:00:02]}  Nd3 {[%clk 0:00:11]} 46. a5 {[%clk 0:00:02]}  Qd2 {[%clk 0:00:09]} 47. Qd4+ {[%clk 0:00:02]}  Kh6 {[%clk 0:00:08]} 48. Qe3+ {[%clk 0:00:02]}  Qxe3 {[%clk 0:00:08]} 49. fxe3 {[%clk 0:00:03]}  Nxb4 {[%clk 0:00:08]} 50. Kf3 {[%clk 0:00:03]}  Kh5 {[%clk 0:00:08]} 51. Kf4 {[%clk 0:00:02]}  f6 {[%clk 0:00:07]} 52. Kf3 {[%clk 0:00:02]}  g5 {[%clk 0:00:04]} 53. hxg5 {[%clk 0:00:02]}  Kxg5 {[%clk 0:00:05]} 54. e4 {[%clk 0:00:02]}  h5 {[%clk 0:00:04]} 55. Ke3 {[%clk 0:00:02]}  Kg4 {[%clk 0:00:04]} 56. Kf2 {[%clk 0:00:02]}  Na6 {[%clk 0:00:03]} 57. Kg2 {[%clk 0:00:02]}  Nc5 {[%clk 0:00:03]} 58. Kh2 {[%clk 0:00:02]}  Kf3 {[%clk 0:00:02]} 59. Kh3 {[%clk 0:00:02]}  Kxe4 {[%clk 0:00:02]} 60. Kh4 {[%clk 0:00:02]}  Kf3 {[%clk 0:00:01]} 61. Kxh5 {[%clk 0:00:03]}  f5 {[%clk 0:00:01]} 62. Kg5 {[%clk 0:00:03]}  Ke4 {[%clk 0:00:02]} 63. Kf6 {[%clk 0:00:02]}  Na6 {[%clk 0:00:02]} 64. Kg5 {[%clk 0:00:03]}  Nb4 {[%clk 0:00:02]} 65. Kf6 {[%clk 0:00:03]}  Nc6 {[%clk 0:00:03]} 66. Kg5 {[%clk 0:00:03]}  Nxa5 {[%clk 0:00:03]} 67. Kf6 {[%clk 0:00:03]}  Nc4 {[%clk 0:00:03]} 68. Kg5 {[%clk 0:00:03]}  Ne3 {[%clk 0:00:04]} 69. Kh4 {[%clk 0:00:03]}  Ng4 {[%clk 0:00:05]} 70. Kg5 {[%clk 0:00:03]}  Ne3 {[%clk 0:00:05]} 71. Kh4 {[%clk 0:00:03]}  Kf3 {[%clk 0:00:06]} 72. Kh3 {[%clk 0:00:03]}  Nf1 {[%clk 0:00:05]} 73. Kh4 {[%clk 0:00:03]}  Nxg3 {[%clk 0:00:06]} 74. Kg5 {[%clk 0:00:03]}  f4 {[%clk 0:00:06]} 75. Kh4 {[%clk 0:00:04]}  Ke3 {[%clk 0:00:06]} 76. Kh3 {[%clk 0:00:04]}  Ne4 {[%clk 0:00:06]} 77. Kg2 {[%clk 0:00:04]}  Ke2 {[%clk 0:00:07]} 78. Kh1 {[%clk 0:00:05]}  f3 {[%clk 0:00:06]} 79. Kg1 {[%clk 0:00:04]}  f2+ {[%clk 0:00:06]} 80. Kh2 {[%clk 0:00:04]}  Nd2 {[%clk 0:00:05]} 81. Kg3 {[%clk 0:00:04]}  f1=Q {[%clk 0:00:05]} 82. Kh2 {[%clk 0:00:05]}  Qf7 {[%clk 0:00:04]} 83. Kg3 {[%clk 0:00:05]}  Qf3+ {[%clk 0:00:03]} 84. Kh2 {[%clk 0:00:05]}  Qg4 {[%clk 0:00:03]} 85. Kh1 {[%clk 0:00:06]}  Kf2 {[%clk 0:00:04]} 86. Kh2 {[%clk 0:00:06]}  Qh4# {[%clk 0:00:01]} 0-1


[Site "https://www.chess.com"]

[Event "Titled Tuesday Blitz May 03 Late 2022"]
[White "Redzisz, Michal"]
[Black "Lehtosaari, Mauri"]
[WhiteFideId "21816107"]
[BlackFideId "501999"]
[WhiteElo "2014"]
[BlackElo "2504"]
[Result "0-1"]
[Round "05"]
[TimeControl "180+1"]
[Date "2022.05.03"]
[WhiteClock "0:00:58"]
[BlackClock "0:00:11"]

1. Nf3 {[%clk 0:03:00]}  c5 {[%clk 0:02:58]} 2. e4 {[%clk 0:02:58]}  e6 {[%clk 0:02:53]} 3. d4 {[%clk 0:02:57]}  cxd4 {[%clk 0:02:54]} 4. Nxd4 {[%clk 0:02:58]}  Qb6 {[%clk 0:02:54]} 5. Nb3 {[%clk 0:02:54]}  Qc7 {[%clk 0:02:54]} 6. Nc3 {[%clk 0:02:54]}  a6 {[%clk 0:02:54]} 7. Be3 {[%clk 0:02:52]}  Nf6 {[%clk 0:02:52]} 8. f3 {[%clk 0:02:51]}  Bb4 {[%clk 0:02:52]} 9. Qd2 {[%clk 0:02:48]}  d5 {[%clk 0:02:49]} 10. exd5 {[%clk 0:02:41]}  Nxd5 {[%clk 0:02:48]} 11. Bd4 {[%clk 0:02:19]}  Nc6 {[%clk 0:02:27]} 12. Bxg7 {[%clk 0:02:04]}  Rg8 {[%clk 0:02:19]} 13. Qh6 {[%clk 0:02:03]}  Bd7 {[%clk 0:01:34]} 14. O-O-O {[%clk 0:01:55]}  Nxc3 {[%clk 0:00:59]} 15. Bxc3 {[%clk 0:01:51]}  Bxc3 {[%clk 0:00:59]} 16. bxc3 {[%clk 0:01:52]}  O-O-O {[%clk 0:00:57]} 17. Qxh7 {[%clk 0:01:43]}  Qf4+ {[%clk 0:00:49]} 18. Kb1 {[%clk 0:01:41]}  Ne5 {[%clk 0:00:48]} 19. Qe4 {[%clk 0:01:37]}  Qxe4 {[%clk 0:00:43]} 20. fxe4 {[%clk 0:01:38]}  Bc6 {[%clk 0:00:43]} 21. Nd2 {[%clk 0:01:22]}  Bxe4 {[%clk 0:00:31]} 22. Rg1 {[%clk 0:01:22]}  Nf3 {[%clk 0:00:20]} 23. gxf3 {[%clk 0:01:22]}  Rxg1 {[%clk 0:00:19]} 24. fxe4 {[%clk 0:01:22]}  Rxf1 {[%clk 0:00:12]} 25. Rxf1 {[%clk 0:01:20]}  Rxd2 {[%clk 0:00:13]} 26. Rxf7 {[%clk 0:01:20]}  Rxh2 {[%clk 0:00:14]} 27. Re7 {[%clk 0:01:20]}  Rh6 {[%clk 0:00:13]} 28. Kb2 {[%clk 0:01:17]}  b6 {[%clk 0:00:13]} 29. Kb3 {[%clk 0:01:15]}  Kd8 {[%clk 0:00:12]} 30. Ra7 {[%clk 0:01:14]}  a5 {[%clk 0:00:12]} 31. Rb7 {[%clk 0:01:14]}  e5 {[%clk 0:00:11]} 32. Kc4 {[%clk 0:01:10]}  Rc6+ {[%clk 0:00:11]} 33. Kd5 {[%clk 0:01:08]}  Rxc3 {[%clk 0:00:11]} 34. Kxe5 {[%clk 0:01:07]}  Rxc2 {[%clk 0:00:11]} 35. Rxb6 {[%clk 0:01:07]}  Rxa2 {[%clk 0:00:11]} 36. Kd6 {[%clk 0:01:07]}  Rd2+ {[%clk 0:00:11]} 37. Ke6 {[%clk 0:01:07]}  a4 {[%clk 0:00:12]} 38. Ra6 {[%clk 0:01:07]}  Rd4 {[%clk 0:00:11]} 39. e5 {[%clk 0:01:07]}  Kc7 {[%clk 0:00:11]} 40. Ke7 {[%clk 0:01:05]}  Kb7 {[%clk 0:00:12]} 41. Ra5 {[%clk 0:01:04]}  Kb6 {[%clk 0:00:12]} 42. Ra8 {[%clk 0:01:05]}  Kb7 {[%clk 0:00:11]} 43. Rh8 {[%clk 0:01:04]}  a3 {[%clk 0:00:10]} 44. Rh3 {[%clk 0:01:03]}  Ra4 {[%clk 0:00:09]} 45. Rh1 {[%clk 0:01:03]}  Kc6 {[%clk 0:00:10]} 46. Rc1+ {[%clk 0:01:01]}  Kd5 {[%clk 0:00:10]} 47. Rd1+ {[%clk 0:01:01]}  Kxe5 {[%clk 0:00:09]} 48. Ra1 {[%clk 0:01:00]}  Kd4 {[%clk 0:00:09]} 49. Kd6 {[%clk 0:01:01]}  Kc3 {[%clk 0:00:09]} 50. Kc5 {[%clk 0:01:02]}  Kb2 {[%clk 0:00:10]} 51. Kb5 {[%clk 0:00:58]}  Kxa1 {[%clk 0:00:10]} 52. Kxa4 {[%clk 0:00:58]}  Kb2 {[%clk 0:00:11]} 53. Kb4 {[%clk 0:00:58]}  a2 {[%clk 0:00:11]} 0-1


[Site "https://www.chess.com"]

[Event "Titled Tuesday Blitz May 03 Late 2022"]
[White "Remizov, Yaroslav"]
[Black "Senthilkumar, Pranav"]
[WhiteFideId "34134015"]
[BlackFideId "2083477"]
[WhiteElo "2386"]
[BlackElo "2442"]
[Result "1-0"]
[Round "05"]
[TimeControl "180+1"]
[Date "2022.05.03"]
[WhiteClock "0:01:19"]
[BlackClock "0:01:35"]

1. a3 {[%clk 0:03:00]}  Nf6 {[%clk 0:02:58]} 2. b3 {[%clk 0:03:00]}  g6 {[%clk 0:02:58]} 3. c3 {[%clk 0:03:00]}  Bg7 {[%clk 0:02:52]} 4. Ra2 {[%clk 0:03:00]}  O-O {[%clk 0:02:52]} 5. d3 {[%clk 0:03:00]}  b5 {[%clk 0:02:51]} 6. e3 {[%clk 0:03:00]}  a5 {[%clk 0:02:50]} 7. f3 {[%clk 0:03:01]}  c5 {[%clk 0:02:50]} 8. g4 {[%clk 0:03:01]}  Bb7 {[%clk 0:02:50]} 9. Rg2 {[%clk 0:03:00]}  d5 {[%clk 0:02:47]} 10. h4 {[%clk 0:02:59]}  h5 {[%clk 0:02:47]} 11. Ne2 {[%clk 0:02:52]}  d4 {[%clk 0:02:46]} 12. e4 {[%clk 0:02:51]}  dxc3 {[%clk 0:02:43]} 13. Nbxc3 {[%clk 0:02:51]}  c4 {[%clk 0:02:43]} 14. dxc4 {[%clk 0:02:48]}  bxc4 {[%clk 0:02:44]} 15. gxh5 {[%clk 0:02:45]}  Nxh5 {[%clk 0:02:41]} 16. Qxd8 {[%clk 0:02:44]}  Rxd8 {[%clk 0:02:42]} 17. bxc4 {[%clk 0:02:43]}  Na6 {[%clk 0:02:40]} 18. Nd5 {[%clk 0:02:38]}  e6 {[%clk 0:02:33]} 19. Ndf4 {[%clk 0:02:28]}  Nxf4 {[%clk 0:02:33]} 20. Nxf4 {[%clk 0:02:26]}  Nc5 {[%clk 0:02:27]} 21. h5 {[%clk 0:02:26]}  Bc3+ {[%clk 0:02:27]} 22. Kf2 {[%clk 0:02:21]}  e5 {[%clk 0:02:21]} 23. Nd5 {[%clk 0:02:19]}  Bxd5 {[%clk 0:02:20]} 24. exd5 {[%clk 0:02:11]}  Bd4+ {[%clk 0:02:18]} 25. Be3 {[%clk 0:02:08]}  Kg7 {[%clk 0:02:18]} 26. Rh4 {[%clk 0:01:54]}  Bxe3+ {[%clk 0:02:08]} 27. Kxe3 {[%clk 0:01:55]}  Rab8 {[%clk 0:02:07]} 28. hxg6 {[%clk 0:01:52]}  fxg6 {[%clk 0:02:08]} 29. Bd3 {[%clk 0:01:29]}  e4 {[%clk 0:01:40]} 30. Bxe4 {[%clk 0:01:27]}  Rb3+ {[%clk 0:01:38]} 31. Kd4 {[%clk 0:01:22]}  Nxe4 {[%clk 0:01:37]} 32. fxe4 {[%clk 0:01:19]}  Rxa3 {[%clk 0:01:37]} 33. Rhg4 {[%clk 0:01:19]}  Ra1 {[%clk 0:01:34]} 34. Rxg6+ {[%clk 0:01:18]}  Kf7 {[%clk 0:01:34]} 35. Rg7+ {[%clk 0:01:19]}  Kf8 {[%clk 0:01:35]} 36. Rg8+ {[%clk 0:01:19]}  Ke7 {[%clk 0:01:35]} 37. R2g7+ {[%clk 0:01:18]}  Kf6 {[%clk 0:01:36]} 38. e5+ {[%clk 0:01:18]}  Kf5 {[%clk 0:01:35]} 39. Rf7# {[%clk 0:01:19]} 1-0


[Site "https://www.chess.com"]

[Event "Titled Tuesday Blitz May 03 Late 2022"]
[White "Remolar Gallen, Jose"]
[Black "Kate1606"]
[WhiteFideId "2215187"]
[WhiteElo "2205"]
[BlackElo "2142"]
[Result "1-0"]
[Round "05"]
[TimeControl "180+1"]
[Date "2022.05.03"]
[WhiteClock "0:00:51"]
[BlackClock "0:01:04"]

1. d4 {[%clk 0:02:59]}  d6 {[%clk 0:02:57]} 2. e4 {[%clk 0:02:56]}  g6 {[%clk 0:02:55]} 3. Nc3 {[%clk 0:02:56]}  Bg7 {[%clk 0:02:54]} 4. f4 {[%clk 0:02:57]}  Nf6 {[%clk 0:02:52]} 5. Nf3 {[%clk 0:02:56]}  O-O {[%clk 0:02:52]} 6. Bd3 {[%clk 0:02:56]}  Nbd7 {[%clk 0:02:50]} 7. e5 {[%clk 0:02:53]}  dxe5 {[%clk 0:02:50]} 8. fxe5 {[%clk 0:02:49]}  Ne8 {[%clk 0:02:47]} 9. Bf4 {[%clk 0:02:35]}  Nb6 {[%clk 0:02:46]} 10. Qe2 {[%clk 0:02:32]}  f6 {[%clk 0:02:37]} 11. O-O-O {[%clk 0:02:14]}  Kh8 {[%clk 0:02:28]} 12. h4 {[%clk 0:02:05]}  Bd7 {[%clk 0:02:17]} 13. h5 {[%clk 0:02:01]}  g5 {[%clk 0:02:16]} 14. h6 {[%clk 0:02:01]}  gxf4 {[%clk 0:02:05]} 15. hxg7+ {[%clk 0:02:00]}  Nxg7 {[%clk 0:02:05]} 16. Rxh7+ {[%clk 0:01:26]}  Kg8 {[%clk 0:02:04]} 17. Rdh1 {[%clk 0:01:25]}  c6 {[%clk 0:01:35]} 18. Bg6 {[%clk 0:01:02]}  Nf5 {[%clk 0:01:09]} 19. Rh8+ {[%clk 0:00:51]}  Kg7 {[%clk 0:01:08]} 20. R1h7+ {[%clk 0:00:52]}  Kxg6 {[%clk 0:01:08]} 21. Nh4+ {[%clk 0:00:51]}  Nxh4 {[%clk 0:01:04]} 22. Qh5# {[%clk 0:00:51]} 1-0


[Site "https://www.chess.com"]

[Event "Titled Tuesday Blitz May 03 Late 2022"]
[White "Rytenko, Vsevolod"]
[Black "Aggelis, Nikolaos"]
[WhiteFideId "14133040"]
[BlackFideId "4213220"]
[WhiteElo "2120"]
[BlackElo "2154"]
[Result "1-0"]
[Round "05"]
[TimeControl "180+1"]
[Date "2022.05.03"]
[WhiteClock "0:01:31"]
[BlackClock "0:00:01"]

1. e4 {[%clk 0:03:00]}  c5 {[%clk 0:02:55]} 2. Nf3 {[%clk 0:02:57]}  e6 {[%clk 0:02:54]} 3. Nc3 {[%clk 0:02:57]}  Nc6 {[%clk 0:02:51]} 4. Bb5 {[%clk 0:02:56]}  Nge7 {[%clk 0:02:51]} 5. O-O {[%clk 0:02:56]}  Ng6 {[%clk 0:02:51]} 6. Bxc6 {[%clk 0:02:55]}  dxc6 {[%clk 0:02:47]} 7. Re1 {[%clk 0:02:55]}  e5 {[%clk 0:02:44]} 8. d3 {[%clk 0:02:52]}  Be7 {[%clk 0:02:43]} 9. Ne2 {[%clk 0:02:51]}  O-O {[%clk 0:02:42]} 10. Ng3 {[%clk 0:02:52]}  Re8 {[%clk 0:02:37]} 11. Nf5 {[%clk 0:02:49]}  Bf8 {[%clk 0:02:37]} 12. g3 {[%clk 0:02:30]}  h6 {[%clk 0:02:37]} 13. h4 {[%clk 0:02:27]}  Qf6 {[%clk 0:02:26]} 14. h5 {[%clk 0:02:24]}  Ne7 {[%clk 0:02:26]} 15. g4 {[%clk 0:02:22]}  Nxf5 {[%clk 0:01:39]} 16. exf5 {[%clk 0:02:18]}  Bd7 {[%clk 0:01:32]} 17. Kg2 {[%clk 0:02:01]}  Bd6 {[%clk 0:01:31]} 18. Nd2 {[%clk 0:02:00]}  Qd8 {[%clk 0:01:12]} 19. Ne4 {[%clk 0:02:00]}  Be7 {[%clk 0:01:12]} 20. Qf3 {[%clk 0:01:54]}  f6 {[%clk 0:01:11]} 21. Qg3 {[%clk 0:01:46]}  Rf8 {[%clk 0:01:08]} 22. f4 {[%clk 0:01:46]}  exf4 {[%clk 0:01:02]} 23. Bxf4 {[%clk 0:01:46]}  Rf7 {[%clk 0:00:54]} 24. Re2 {[%clk 0:01:45]}  Qb6 {[%clk 0:00:54]} 25. b3 {[%clk 0:01:42]}  c4 {[%clk 0:00:43]} 26. bxc4 {[%clk 0:01:34]}  Re8 {[%clk 0:00:36]} 27. Rae1 {[%clk 0:01:34]}  Bb4 {[%clk 0:00:34]} 28. Nxf6+ {[%clk 0:01:28]}  Rxf6 {[%clk 0:00:26]} 29. Rxe8+ {[%clk 0:01:28]}  Bxe8 {[%clk 0:00:26]} 30. Rxe8+ {[%clk 0:01:29]}  Kh7 {[%clk 0:00:17]} 31. g5 {[%clk 0:01:29]}  hxg5 {[%clk 0:00:17]} 32. Qxg5 {[%clk 0:01:29]}  c5 {[%clk 0:00:01]} 33. Qg6+ {[%clk 0:01:29]}  Rxg6+ {[%clk 0:00:01]} 34. fxg6+ {[%clk 0:01:30]}  Qxg6+ {[%clk 0:00:01]} 35. hxg6+ {[%clk 0:01:31]}  Kxg6 {[%clk 0:00:01]} 36. Re7 {[%clk 0:01:31]} 1-0


[Site "https://www.chess.com"]

[Event "Titled Tuesday Blitz May 03 Late 2022"]
[White "Sailer, Mike"]
[Black "Bifulco, Michel"]
[WhiteFideId "2012901"]
[BlackFideId "828580"]
[WhiteElo "2109"]
[BlackElo "2165"]
[Result "0-1"]
[Round "05"]
[TimeControl "180+1"]
[Date "2022.05.03"]
[WhiteClock "0:00:03"]
[BlackClock "0:01:17"]

1. d4 {[%clk 0:03:00]}  Nf6 {[%clk 0:02:59]} 2. Nf3 {[%clk 0:03:00]}  g6 {[%clk 0:03:00]} 3. Bf4 {[%clk 0:03:01]}  Bg7 {[%clk 0:03:00]} 4. e3 {[%clk 0:03:01]}  d6 {[%clk 0:03:00]} 5. Be2 {[%clk 0:03:02]}  O-O {[%clk 0:03:00]} 6. O-O {[%clk 0:03:03]}  c5 {[%clk 0:03:01]} 7. c4 {[%clk 0:03:03]}  Nbd7 {[%clk 0:02:58]} 8. Nc3 {[%clk 0:02:46]}  Nh5 {[%clk 0:02:57]} 9. Bg5 {[%clk 0:02:46]}  h6 {[%clk 0:02:58]} 10. Bh4 {[%clk 0:02:45]}  g5 {[%clk 0:02:58]} 11. Bg3 {[%clk 0:02:38]}  Nxg3 {[%clk 0:02:59]} 12. hxg3 {[%clk 0:02:38]}  cxd4 {[%clk 0:02:58]} 13. exd4 {[%clk 0:02:36]}  b6 {[%clk 0:02:58]} 14. a4 {[%clk 0:02:30]}  Bb7 {[%clk 0:02:58]} 15. a5 {[%clk 0:02:28]}  Rc8 {[%clk 0:02:58]} 16. axb6 {[%clk 0:02:27]}  Qxb6 {[%clk 0:02:47]} 17. b3 {[%clk 0:02:09]}  Bxf3 {[%clk 0:02:33]} 18. Bxf3 {[%clk 0:01:51]}  Qxd4 {[%clk 0:02:33]} 19. Nd5 {[%clk 0:01:17]}  Rfe8 {[%clk 0:02:12]} 20. Ra2 {[%clk 0:00:44]}  Ne5 {[%clk 0:02:00]} 21. Rd2 {[%clk 0:00:33]}  Nxf3+ {[%clk 0:01:59]} 22. gxf3 {[%clk 0:00:33]}  Qc5 {[%clk 0:01:58]} 23. Re1 {[%clk 0:00:21]}  e6 {[%clk 0:01:59]} 24. b4 {[%clk 0:00:05]}  Qxc4 {[%clk 0:01:58]} 25. Ne3 {[%clk 0:00:05]}  Qxb4 {[%clk 0:01:58]} 26. Rxd6 {[%clk 0:00:05]}  a5 {[%clk 0:01:48]} 27. Ng4 {[%clk 0:00:05]}  a4 {[%clk 0:01:43]} 28. Ne5 {[%clk 0:00:05]}  a3 {[%clk 0:01:36]} 29. Rd7 {[%clk 0:00:04]}  Bxe5 {[%clk 0:01:29]} 30. Rxe5 {[%clk 0:00:04]}  a2 {[%clk 0:01:29]} 31. Ra7 {[%clk 0:00:03]}  Qb2 {[%clk 0:01:22]} 32. Re2 {[%clk 0:00:03]}  Rc1 {[%clk 0:01:17]} 0-1


[Site "https://www.chess.com"]

[Event "Titled Tuesday Blitz May 03 Late 2022"]
[White "Sernecki, Franciszek"]
[Black "Yanayt, Eugene"]
[WhiteFideId "1169297"]
[BlackFideId "2020165"]
[WhiteElo "2165"]
[BlackElo "2046"]
[Result "0-1"]
[Round "05"]
[TimeControl "180+1"]
[Date "2022.05.03"]
[WhiteClock "0:00:07"]
[BlackClock "0:00:19"]

1. e4 {[%clk 0:03:00]}  c5 {[%clk 0:02:59]} 2. Nf3 {[%clk 0:03:00]}  d6 {[%clk 0:02:57]} 3. d4 {[%clk 0:03:00]}  cxd4 {[%clk 0:02:55]} 4. Nxd4 {[%clk 0:03:01]}  Nf6 {[%clk 0:02:55]} 5. Nc3 {[%clk 0:03:01]}  a6 {[%clk 0:02:55]} 6. Be3 {[%clk 0:02:56]}  e5 {[%clk 0:02:54]} 7. Nf3 {[%clk 0:02:56]}  Be6 {[%clk 0:02:48]} 8. Be2 {[%clk 0:02:51]}  Be7 {[%clk 0:02:45]} 9. O-O {[%clk 0:02:50]}  Nbd7 {[%clk 0:02:43]} 10. Ng5 {[%clk 0:02:50]}  O-O {[%clk 0:02:38]} 11. Nxe6 {[%clk 0:02:47]}  fxe6 {[%clk 0:02:38]} 12. Bg4 {[%clk 0:02:45]}  Nxg4 {[%clk 0:02:35]} 13. Qxg4 {[%clk 0:02:46]}  Rf6 {[%clk 0:02:35]} 14. Bg5 {[%clk 0:02:39]}  Rg6 {[%clk 0:02:34]} 15. Bxe7 {[%clk 0:02:37]}  Qxe7 {[%clk 0:02:34]} 16. Qe2 {[%clk 0:02:29]}  Rf8 {[%clk 0:02:29]} 17. Rad1 {[%clk 0:02:27]}  Nf6 {[%clk 0:02:20]} 18. Qd3 {[%clk 0:02:19]}  Rd8 {[%clk 0:02:01]} 19. f4 {[%clk 0:02:18]}  exf4 {[%clk 0:01:53]} 20. e5 {[%clk 0:02:18]}  Ne8 {[%clk 0:01:49]} 21. Rxf4 {[%clk 0:02:03]}  d5 {[%clk 0:01:45]} 22. Qf3 {[%clk 0:01:37]}  h6 {[%clk 0:00:58]} 23. Rf1 {[%clk 0:01:29]}  Nc7 {[%clk 0:00:55]} 24. Rf7 {[%clk 0:01:11]}  Qc5+ {[%clk 0:00:53]} 25. Kh1 {[%clk 0:01:10]}  d4 {[%clk 0:00:44]} 26. Ne2 {[%clk 0:00:58]}  Qxe5 {[%clk 0:00:43]} 27. Nf4 {[%clk 0:00:24]}  Rf6 {[%clk 0:00:34]} 28. Rxg7+ {[%clk 0:00:23]}  Kxg7 {[%clk 0:00:28]} 29. Nh5+ {[%clk 0:00:21]}  Kh8 {[%clk 0:00:22]} 30. Nxf6 {[%clk 0:00:17]}  Rf8 {[%clk 0:00:20]} 31. Qxb7 {[%clk 0:00:09]}  Rxf6 {[%clk 0:00:19]} 32. Rxf6 {[%clk 0:00:07]}  Qe1+ {[%clk 0:00:19]} 0-1


[Site "https://www.chess.com"]